bitfinex/quotes_BTCUSD_20230115
["timestamp","ask_amount","ask_price","bid_price","bid_amount"]
[1673792153934,1.57385791,20717.0,20716.0,0.03846778]
[1673792154200,1.89493491,20717.0,20716.0,0.03846778]
[1673792154729,2.03905077,20717.0,20716.0,0.03846778]
[1673792156045,1.89493491,20717.0,20716.0,0.03846778]
[1673792156577,2.18319737,20717.0,20716.0,0.03846778]
[1673792157575,2.03909748,20717.0,20716.0,0.03846778]
[1673792157846,1.57387892,20717.0,20716.0,0.03846778]
[1673792158138,1.89495592,20717.0,20716.0,0.03846778]
[1673792158404,2.03909498,20717.0,20716.0,0.03846778]
[1673792158666,1.89495592,20717.0,20716.0,0.03846778]
[1673792160013,2.18319737,20717.0,20716.0,0.03846778]
[1673792160272,1.88319737,20717.0,20716.0,0.03846778]
[1673792160828,1.51295592,20717.0,20716.0,0.03746778]
[1673792161082,1.73909686,20717.0,20716.0,0.03846778]
[1673792161378,1.65709686,20717.0,20716.0,0.03746778]
[1673792161657,1.65709686,20717.0,20716.0,0.03846778]
[1673792161658,1.59495592,20717.0,20716.0,0.03846778]
[1673792161927,1.81295592,20717.0,20716.0,0.03746778]
[1673792162184,2.03907045,20717.0,20716.0,0.03846778]
[1673792162439,2.03907065,20717.0,20716.0,0.03846778]
[1673792162751,0.53611473,20717.0,20716.0,0.03846778]
[1673792163008,0.392,20717.0,20716.0,0.03846778]
[1673792163294,0.631077,20717.0,20716.0,0.03746778]
[1673792163552,0.713077,20717.0,20716.0,0.03846778]
[1673792163808,0.631077,20717.0,20716.0,0.03746778]
[1673792164082,0.713077,20717.0,20716.0,0.03846778]
[1673792164357,0.713077,20717.0,20716.0,0.03746778]
[1673792164358,0.631077,20717.0,20716.0,0.03746778]
[1673792164625,0.85719173,20717.0,20716.0,0.03846778]
[1673792164885,1.82284788,20717.0,20716.0,0.03846778]
[1673792165180,0.85719173,20717.0,20716.0,0.03846778]
[1673792165973,0.713077,20717.0,20716.0,0.03846778]
[1673792166476,0.85719173,20717.0,20716.0,0.03846778]
[1673792168547,1.82285786,20717.0,20716.0,0.13182261]
[1673792168766,1.82286306,20717.0,20716.0,0.13182261]
[1673792169032,0.85719173,20717.0,20716.0,0.03846778]
[1673792169321,0.85719173,20717.0,20716.0,0.03839605]
[1673792169551,0.53611473,20717.0,20716.0,0.03839605]
[1673792169808,0.392,20717.0,20716.0,0.03839605]
[1673792170051,0.392,20717.0,20716.0,0.18001851]
[1673792170352,0.092,20717.0,20716.0,0.18001851]
[1673792171219,0.092,20717.0,20716.0,0.76336329]
[1673792171496,0.092,20717.0,20716.0,1.23325451]
[1673792171752,1e-08,20717.0,20716.0,1.37768429]
[1673792172011,0.36031683,20721.0,20716.0,1.69571501]
[1673792172285,0.007,20717.0,20716.0,1.62341501]
[1673792172549,0.007,20717.0,20716.0,1.23925451]
[1673792173065,0.007,20717.0,20716.0,1.23225451]
[1673792173546,0.36731683,20721.0,20716.0,1.23925451]
[1673792173809,0.14411473,20721.0,20718.0,0.0793]
[1673792174059,0.14411473,20721.0,20719.0,0.482648]
[1673792174303,0.40984625,20722.0,20719.0,0.482648]
[1673792174558,0.40984625,20722.0,20719.0,0.58327478]
[1673792174814,0.19364415,20722.0,20719.0,0.482648]
[1673792175096,1.116641,20721.0,20720.0,0.35216809]
[1673792175325,0.77219173,20721.0,20720.0,0.35216809]
[1673792175570,0.45111473,20721.0,20720.0,0.35216809]
[1673792176071,0.44411473,20721.0,20720.0,0.35216809]
[1673792176322,0.3,20721.0,20720.0,0.35216809]
[1673792176569,0.14411473,20722.0,20720.0,0.4918458]
[1673792176816,0.007,20721.0,20720.0,0.4988458]
[1673792177068,0.007,20721.0,20720.0,0.35916809]
[1673792177582,0.15111473,20721.0,20720.0,0.35916809]
[1673792177834,0.307,20721.0,20720.0,0.35916809]
[1673792178088,0.007,20721.0,20720.0,0.35916809]
[1673792184301,0.328077,20721.0,20720.0,0.35916809]
[1673792184562,0.628077,20721.0,20720.0,0.35916809]
[1673792185064,0.77219173,20721.0,20720.0,0.35916809]
[1673792185565,0.628077,20721.0,20720.0,0.35916809]
[1673792185818,0.307,20721.0,20720.0,0.35916809]
[1673792186065,0.45111473,20721.0,20720.0,0.35916809]
[1673792186336,0.45111473,20721.0,20720.0,0.007]
[1673792187306,0.307,20721.0,20720.0,0.007]
[1673792187823,0.628077,20721.0,20720.0,0.007]
[1673792188089,0.307,20721.0,20720.0,0.007]
[1673792188341,0.66731683,20721.0,20720.0,0.007]
[1673792188595,1.73771685,20721.0,20720.0,0.007]
[1673792188850,1.95391895,20721.0,20720.0,0.007]
[1673792189105,0.77219173,20721.0,20720.0,0.007]
[1673792189356,0.307,20721.0,20720.0,0.007]
[1673792190379,0.307,20721.0,20720.0,0.46622664]
[1673792190602,0.007,20721.0,20720.0,0.46622664]
[1673792190902,0.307,20721.0,20720.0,0.46622664]
[1673792191157,0.007,20721.0,20720.0,0.46622664]
[1673792192663,0.007,20721.0,20720.0,0.32095168]
[1673792195164,0.15111473,20721.0,20720.0,0.32095168]
[1673792195631,0.307,20721.0,20720.0,0.32095168]
[1673792196114,0.45111473,20721.0,20720.0,0.32095168]
[1673792196870,0.007,20721.0,20720.0,0.32095168]
[1673792197120,0.007,20721.0,20720.0,0.45750945]
[1673792198158,0.45111473,20721.0,20720.0,0.45750945]
[1673792198405,0.307,20721.0,20720.0,0.45750945]
[1673792198923,0.007,20721.0,20720.0,0.45750945]
[1673792201185,0.007,20721.0,20720.0,0.45743298]
[1673792204258,0.007,20721.0,20720.0,0.32087521]
[1673792205126,0.15111473,20721.0,20720.0,0.32087521]
[1673792205836,0.007,20721.0,20720.0,0.32087521]
[1673792206604,0.15111473,20721.0,20720.0,0.32087521]
[1673792206859,0.007,20721.0,20720.0,0.32087521]
[1673792207121,0.007,20721.0,20720.0,0.50568383]
[1673792207390,0.30924,20721.0,20720.0,0.32087521]
[1673792207677,2.26993023,20721.0,20720.0,0.00692353]
[1673792207900,2.40028128,20721.0,20720.0,0.00692353]
[1673792208172,2.07920428,20721.0,20720.0,0.00692353]
[1673792208420,2.40028128,20721.0,20720.0,0.00692353]
[1673792208668,2.29391802,20721.0,20720.0,0.00692353]
[1673792208983,2.07926402,20721.0,20720.0,0.00692353]
[1673792209187,2.40034102,20721.0,20720.0,0.00692353]
[1673792209667,2.18407918,20721.0,20720.0,0.00692353]
[1673792209963,2.40033984,20721.0,20720.0,0.00692353]
[1673792210475,2.5105894,20721.0,20720.0,0.00692353]
[1673792210979,2.2959354,20721.0,20720.0,0.00692353]
[1673792211229,2.32877095,20721.0,20720.0,0.00692353]
[1673792211475,2.61725099,20721.0,20720.0,0.00692353]
[1673792212463,2.22234795,20721.0,20720.0,0.00692353]
[1673792212692,2.00769395,20721.0,20720.0,0.00692353]
[1673792212941,2.61725291,20721.0,20720.0,0.00692353]
[1673792213190,2.51082991,20721.0,20720.0,0.00692353]
[1673792213445,2.29617591,20721.0,20720.0,0.00692353]
[1673792213700,2.61725291,20721.0,20720.0,0.00692353]
[1673792214457,2.29617591,20721.0,20720.0,0.00692353]
[1673792214719,2.61725291,20721.0,20720.0,0.00692353]
[1673792214973,2.00769395,20721.0,20720.0,0.00692353]
[1673792215247,2.32877095,20721.0,20720.0,0.00692353]
[1673792215512,2.61725888,20721.0,20720.0,0.00692353]
[1673792215784,2.32877095,20721.0,20720.0,0.00692353]
[1673792216747,2.29615301,20721.0,20720.0,0.00692353]
[1673792216999,2.61723001,20721.0,20720.0,0.00692353]
[1673792219849,2.29615301,20721.0,20720.0,0.00692353]
[1673792220118,2.32877095,20721.0,20720.0,0.02429795]
[1673792220567,2.00769395,20721.0,20720.0,0.02429795]
[1673792220814,2.32877095,20721.0,20720.0,0.02429795]
[1673792221299,2.61731709,20721.0,20720.0,0.02429795]
[1673792221533,2.51089409,20721.0,20720.0,0.02429795]
[1673792222775,2.34467395,20721.0,20720.0,0.02429795]
[1673792223047,2.82727595,20721.0,20720.0,0.02429795]
[1673792223778,3.18794143,20721.0,20720.0,0.02429795]
[1673792225404,3.18794143,20721.0,20720.0,0.02419711]
[1673792226449,3.47642413,20721.0,20720.0,0.02419711]
[1673792226697,3.26177013,20721.0,20720.0,0.02419711]
[1673792226912,3.58285133,20721.0,20720.0,0.02419711]
[1673792227382,3.26177433,20721.0,20720.0,0.02419711]
[1673792227607,3.14955296,20721.0,20720.0,0.02419711]
[1673792228083,3.36594264,20721.0,20720.0,0.02419711]
[1673792228321,3.14955296,20721.0,20720.0,0.02419711]
[1673792228632,2.82847596,20721.0,20720.0,0.02419711]
[1673792228881,3.36594308,20721.0,20720.0,0.02419711]
[1673792229138,2.88334108,20721.0,20720.0,0.02419711]
[1673792229422,2.66695096,20721.0,20720.0,0.02419711]
[1673792229662,2.56052796,20721.0,20720.0,0.02419711]
[1673792230800,2.63302255,20721.0,20720.0,0.02419711]
[1673792230981,2.51108603,20721.0,20720.0,0.02419711]
[1673792231456,2.07792596,20721.0,20720.0,0.02419711]
[1673792231964,2.29431349,20721.0,20720.0,0.02419711]
[1673792232995,2.07965949,20721.0,20720.0,0.02419711]
[1673792233529,1.18890826,20721.0,20720.0,0.06316255]
[1673792233762,1.77741949,20721.0,20720.0,0.06316255]
[1673792234007,1.56103196,20721.0,20720.0,0.02419711]
[1673792234269,1.88210896,20721.0,20720.0,0.02419711]
[1673792234534,2.09851298,20721.0,20720.0,0.02419711]
[1673792235305,1.99208998,20721.0,20720.0,0.02419711]
[1673792235560,1.81000175,20721.0,20720.0,0.02419711]
[1673792235835,1.81000175,20721.0,20720.0,0.4601877]
[1673792235836,1.18892475,20721.0,20720.0,0.4601877]
[1673792236057,1.33319171,20721.0,20720.0,0.4601877]
[1673792236329,1.18892475,20721.0,20720.0,0.37295526]
[1673792236571,1.33318584,20721.0,20720.0,0.37295526]
[1673792236835,1.18892475,20721.0,20720.0,0.37295526]
[1673792237064,1.33318817,20721.0,20720.0,0.37295526]
[1673792237574,1.33319027,20721.0,20720.0,0.37295526]
[1673792237824,1.33319356,20721.0,20720.0,0.37295526]
[1673792238076,1.18892475,20721.0,20720.0,0.37295526]
[1673792238577,1.33319992,20721.0,20720.0,0.37295526]
[1673792239113,1.18892475,20721.0,20720.0,0.37295526]
[1673792239393,1.33320426,20721.0,20720.0,0.37295526]
[1673792239709,1.11680024,20721.0,20720.0,0.37295526]
[1673792239909,0.007,20721.0,20720.0,0.37295526]
[1673792241930,0.007,20721.0,20720.0,1.49113504]
[1673792242428,0.007,20721.0,20720.0,1.34670526]
[1673792244934,0.007,20721.0,20720.0,0.86408026]
[1673792245191,0.007,20721.0,20720.0,1.12796416]
[1673792248486,0.007,20721.0,20720.0,0.86408026]
[1673792254993,0.42571951,20721.0,20720.0,0.37295526]
[1673792255193,0.72571951,20721.0,20720.0,0.02419711]
[1673792255686,2.22866786,20721.0,20720.0,0.02419711]
[1673792256190,2.12224486,20721.0,20720.0,0.02407986]
[1673792256440,2.37289958,20721.0,20720.0,0.02407986]
[1673792256705,2.26647658,20721.0,20720.0,0.02407986]
[1673792256964,1.90756278,20721.0,20720.0,0.02407986]
[1673792257215,2.22863978,20721.0,20720.0,0.02407986]
[1673792258174,2.37289958,20721.0,20720.0,0.02407986]
[1673792258422,2.22863648,20721.0,20720.0,0.02407986]
[1673792259438,1.76331135,20721.0,20720.0,0.02407986]
[1673792259690,2.08438835,20721.0,20720.0,0.02407986]
[1673792259944,1.90755107,20721.0,20720.0,0.02407986]
[1673792260195,2.22862807,20721.0,20720.0,0.02407986]
[1673792260947,1.48887135,20721.0,20720.0,0.02407986]
[1673792261197,1.41673168,20721.0,20720.0,0.02407986]
[1673792261455,1.11673168,20721.0,20720.0,0.40938256]
[1673792261748,0.15126435,20721.0,20720.0,0.40938256]
[1673792262240,0.15126435,20721.0,20720.0,0.55478312]
[1673792262987,0.007,20721.0,20720.0,0.40938256]
[1673792264505,0.15126435,20721.0,20720.0,0.40938256]
[1673792264969,1.11673724,20721.0,20720.0,0.40938256]
[1673792265486,0.15126435,20721.0,20720.0,0.40938256]
[1673792265984,1.11672709,20721.0,20720.0,0.40938256]
[1673792266243,1.11672527,20721.0,20720.0,0.60304312]
[1673792266502,0.007,20721.0,20720.0,1.09416812]
[1673792270178,0.007,20721.0,20720.0,1.57679312]
[1673792274949,0.007,20721.0,20720.0,1.17679312]
[1673792281057,0.007,20721.0,20720.0,0.98313256]
[1673792281316,0.007,20721.0,20720.0,0.0085]
[1673792281317,0.58363156,20721.0,20720.0,0.0085]
[1673792281827,2.20976325,20721.0,20720.0,0.0085]
[1673792282107,2.3865759,20721.0,20720.0,0.0085]
[1673792282344,2.20981564,20721.0,20720.0,0.0085]
[1673792282566,2.53089264,20721.0,20720.0,0.0085]
[1673792283369,2.31448115,20721.0,20720.0,0.0085]
[1673792284170,2.53088517,20721.0,20720.0,0.0085]
[1673792284422,2.38656843,20721.0,20720.0,0.0085]
[1673792284951,2.31447728,20721.0,20720.0,0.0085]
[1673792285525,2.5308813,20721.0,20720.0,0.0085]
[1673792286093,2.67507966,20721.0,20720.0,0.0085]
[1673792286349,2.53088671,20721.0,20719.0,0.0085]
[1673792286603,0.214654,20720.0,20719.0,0.0085]
[1673792287108,0.44431828,20720.0,20719.0,0.0085]
[1673792287390,1.94730324,20720.0,20718.0,0.76885095]
[1673792287636,0.214654,20719.0,20718.0,0.76885095]
[1673792287884,0.6607223,20720.0,20718.0,0.77735095]
[1673792288376,0.6747223,20720.0,20719.0,0.007]
[1673792288637,1.62625366,20720.0,20718.0,0.77735095]
[1673792288876,0.335077,20719.0,20718.0,0.78435095]
[1673792289141,0.014,20719.0,20718.0,0.78435095]
[1673792289416,0.60780239,20720.0,20718.0,0.77735095]
[1673792289651,0.31233233,20719.0,20718.0,0.498153]
[1673792289935,0.31233233,20719.0,20718.0,0.58258285]
[1673792290158,0.32633233,20719.0,20718.0,0.58958285]
[1673792290417,0.31233233,20719.0,20718.0,0.58258285]
[1673792290693,0.14431828,20720.0,20718.0,0.58258285]
[1673792290908,0.14431828,20720.0,20719.0,0.13713054]
[1673792291405,0.635077,20720.0,20719.0,0.13713054]
[1673792291652,0.314,20720.0,20719.0,0.13713054]
[1673792291897,0.621077,20720.0,20719.0,0.13713054]
[1673792292150,0.14431828,20720.0,20719.0,0.13713054]
[1673792292404,0.014,20720.0,20719.0,0.14413054]
[1673792293162,1.12382315,20720.0,20719.0,0.007]
[1673792293414,0.15831828,20720.0,20719.0,0.007]
[1673792293688,0.014,20720.0,20719.0,0.007]
[1673792293933,0.014,20720.0,20719.0,0.35411674]
[1673792295247,0.014,20720.0,20719.0,0.83676474]
[1673792295469,0.014,20720.0,20719.0,1.04146785]
[1673792299457,0.014,20720.0,20719.0,1.52411585]
[1673792299712,0.014,20720.0,20719.0,1.67704563]
[1673792299993,0.014,20720.0,20719.0,1.53261585]
[1673792302330,0.014,20720.0,20719.0,1.67704563]
[1673792303399,0.014,20720.0,20719.0,1.53261585]
[1673792305476,0.014,20720.0,20719.0,1.67704563]
[1673792306018,0.014,20720.0,20719.0,1.53261585]
[1673792306248,0.014,20720.0,20719.0,1.67704563]
[1673792307383,0.46337554,20723.0,20720.0,0.44105697]
[1673792307583,0.46337554,20723.0,20721.0,0.18559859]
[1673792307855,0.46337554,20723.0,20721.0,0.66820059]
[1673792308134,0.14431828,20722.0,20721.0,0.66820059]
[1673792308367,0.4147119,20723.0,20721.0,0.66820059]
[1673792308609,0.4157119,20723.0,20721.0,0.66820059]
[1673792308839,0.4147119,20723.0,20722.0,0.14998626]
[1673792309090,1.11069351,20723.0,20722.0,0.14998626]
[1673792309323,0.14519934,20723.0,20722.0,0.14998626]
[1673792309569,0.44519934,20723.0,20722.0,0.14998626]
[1673792309817,0.14519934,20723.0,20722.0,0.14998626]
[1673792310064,0.36160336,20723.0,20722.0,0.14998626]
[1673792310315,1.32698217,20723.0,20722.0,0.14998626]
[1673792310563,0.14419934,20723.0,20722.0,0.14998626]
[1673792310820,0.14519934,20723.0,20722.0,0.15798626]
[1673792311855,0.44519934,20723.0,20722.0,0.15798626]
[1673792312108,0.001,20723.0,20722.0,0.15798626]
[1673792313380,1.18278169,20723.0,20721.0,1.4339098]
[1673792313660,0.321077,20722.0,20721.0,1.4339098]
[1673792313884,0.21740402,20723.0,20721.0,1.4339098]
[1673792314403,0.001,20723.0,20721.0,1.4339098]
[1673792314649,0.3,20723.0,20721.0,1.4339098]
[1673792314931,0.008,20722.0,20721.0,1.4409098]
[1673792315147,0.3,20723.0,20721.0,1.4339098]
[1673792315423,0.308,20723.0,20722.0,0.36042723]
[1673792315670,0.008,20723.0,20722.0,0.36042723]
[1673792315920,0.008,20723.0,20722.0,0.55891051]
[1673792316691,0.97336613,20723.0,20722.0,0.36042723]
[1673792316925,1.58644313,20723.0,20722.0,0.36042723]
[1673792317176,0.96536613,20723.0,20722.0,0.36042723]
[1673792317423,1.29444313,20723.0,20722.0,0.36742723]
[1673792317666,0.97336613,20723.0,20722.0,0.36742723]
[1673792317925,0.329077,20723.0,20722.0,0.36742723]
[1673792318171,0.97336477,20723.0,20722.0,0.36742723]
[1673792318433,0.329077,20723.0,20722.0,0.36742723]
[1673792319176,2.46142797,20723.0,20722.0,0.007]
[1673792319427,2.31723364,20723.0,20722.0,0.007]
[1673792319678,2.01723364,20723.0,20722.0,0.007]
[1673792319929,0.67006334,20723.0,20722.0,0.007]
[1673792320183,1.47974117,20723.0,20722.0,0.007]
[1673792320434,0.1523169,20723.0,20722.0,0.007]
[1673792320689,0.008,20723.0,20722.0,0.32459471]
[1673792321665,0.1523169,20723.0,20722.0,0.32459471]
[1673792321914,0.4523169,20723.0,20722.0,0.32459471]
[1673792322140,0.4523169,20723.0,20722.0,0.50268328]
[1673792322370,0.1523169,20723.0,20722.0,0.50268328]
[1673792325391,0.4523169,20723.0,20722.0,0.50268328]
[1673792325885,1.417688,20723.0,20722.0,0.50268328]
[1673792326667,1.417688,20723.0,20722.0,0.32459471]
[1673792326915,1.63409202,20723.0,20722.0,0.32459471]
[1673792327418,1.117688,20723.0,20722.0,0.32459471]
[1673792327936,0.008,20723.0,20722.0,0.32459471]
[1673792328180,0.308,20723.0,20722.0,0.32459471]
[1673792328428,0.008,20723.0,20722.0,0.46886616]
[1673792329654,0.308,20723.0,20722.0,0.46886616]
[1673792330120,0.4523169,20723.0,20722.0,0.46886616]
[1673792330403,1.41767576,20723.0,20722.0,0.32459471]
[1673792330656,1.77827411,20723.0,20722.0,0.007]
[1673792330908,2.09935111,20723.0,20722.0,0.007]
[1673792331171,1.73880839,20723.0,20722.0,0.007]
[1673792331410,1.95521241,20723.0,20722.0,0.007]
[1673792331657,1.63413541,20723.0,20722.0,0.007]
[1673792332164,1.41773139,20723.0,20722.0,0.007]
[1673792332418,1.48976288,20723.0,20722.0,0.007]
[1673792332664,2.47224846,20723.0,20722.0,0.007]
[1673792332919,2.32815354,20723.0,20722.0,0.007]
[1673792333907,2.18373723,20723.0,20722.0,0.007]
[1673792335469,2.47224846,20723.0,20722.0,0.007]
[1673792335917,2.18373723,20723.0,20722.0,0.007]
[1673792336737,2.47224846,20723.0,20722.0,0.007]
[1673792337547,2.43362738,20723.0,20722.0,0.007]
[1673792338280,2.7224394,20723.0,20722.0,0.007]
[1673792339838,2.32838849,20723.0,20722.0,0.007]
[1673792340103,2.00731149,20723.0,20722.0,0.007]
[1673792340619,2.32838849,20723.0,20722.0,0.007]
[1673792340876,2.4727784,20723.0,20722.0,0.007]
[1673792341133,2.1517014,20723.0,20722.0,0.007]
[1673792341631,2.18396638,20723.0,20722.0,0.007]
[1673792342136,2.72219691,20723.0,20722.0,0.007]
[1673792342399,1.93506823,20723.0,20722.0,0.007]
[1673792342669,1.86290765,20723.0,20722.0,0.007]
[1673792342905,1.93506823,20723.0,20722.0,0.007]
[1673792343181,2.15170977,20723.0,20722.0,0.007]
[1673792343665,1.93506823,20723.0,20722.0,0.007]
[1673792344173,2.25614523,20723.0,20722.0,0.007]
[1673792344677,2.72255869,20723.0,20722.0,0.007]
[1673792345395,2.25614523,20723.0,20722.0,0.007]
[1673792345664,2.47279433,20723.0,20722.0,0.007]
[1673792345915,2.18398231,20723.0,20722.0,0.007]
[1673792346142,2.15171733,20723.0,20722.0,0.007]
[1673792346918,2.7237907,20723.0,20722.0,0.007]
[1673792348413,2.47278122,20723.0,20722.0,0.007]
[1673792348670,2.15170422,20723.0,20722.0,0.007]
[1673792348928,1.85170422,20723.0,20722.0,0.007]
[1673792349194,1.93506823,20723.0,20722.0,0.007]
[1673792349461,1.86289872,20723.0,20722.0,0.007]
[1673792349961,2.15170251,20723.0,20722.0,0.007]
[1673792350237,1.85170251,20723.0,20722.0,0.007]
[1673792350482,1.70733162,20723.0,20722.0,0.007]
[1673792350986,1.85170251,20723.0,20722.0,0.007]
[1673792351781,1.70733448,20723.0,20722.0,0.007]
[1673792352295,1.33443713,20723.0,20722.0,0.007]
[1673792352576,1.11780285,20723.0,20722.0,0.29408869]
[1673792352865,1.33443713,20723.0,20722.0,0.50438734]
[1673792354192,1.33443713,20723.0,20722.0,1.46954334]
[1673792354441,0.008,20723.0,20722.0,1.46954334]
[1673792354728,0.008,20723.0,20722.0,1.47804334]
[1673792354983,0.15244399,20723.0,20722.0,1.47804334]
[1673792355238,0.008,20723.0,20722.0,1.47804334]
[1673792355744,0.36107827,20724.0,20722.0,1.47104334]
[1673792356027,0.67819546,20724.0,20723.0,0.20980531]
[1673792356274,2.08790137,20724.0,20723.0,0.20980531]
[1673792356823,2.33951588,20724.0,20723.0,0.20980531]
[1673792357046,2.33951588,20724.0,20722.0,0.98846534]
[1673792357329,1.35059871,20724.0,20723.0,0.001]
[1673792357601,2.42352088,20724.0,20723.0,0.001]
[1673792358685,2.33952088,20724.0,20722.0,0.98846534]
[1673792358924,2.09186121,20723.0,20722.0,0.98846534]
[1673792359204,1.77078421,20723.0,20722.0,0.98846534]
[1673792359737,1.47078421,20723.0,20722.0,0.98946534]
[1673792359961,1.32638431,20723.0,20722.0,0.98946534]
[1673792360215,1.10978291,20723.0,20722.0,0.98946534]
[1673792360479,0.14442096,20723.0,20722.0,1.47104334]
[1673792360775,0.22842096,20723.0,20722.0,1.47204334]
[1673792361000,0.084,20723.0,20722.0,1.47204334]
[1673792361282,0.084,20723.0,20722.0,2.13062392]
[1673792361526,0.08391136,20723.0,20722.0,2.13062392]
[1673792362065,0.08391136,20723.0,20722.0,2.34731295]
[1673792362290,0.08391136,20723.0,20722.0,2.95230885]
[1673792362818,0.08391136,20723.0,20722.0,2.13062392]
[1673792363332,0.08391136,20723.0,20722.0,2.95230814]
[1673792363586,0.08391136,20723.0,20722.0,2.13062392]
[1673792364108,0.56147634,20726.0,20723.0,0.435833]
[1673792364375,0.56147634,20726.0,20724.0,0.63931093]
[1673792364663,0.20177796,20726.0,20724.0,1.12184293]
[1673792365190,0.14442096,20725.0,20724.0,1.12184293]
[1673792365445,0.36872737,20726.0,20724.0,1.13034293]
[1673792365706,0.00769687,20726.0,20724.0,2.12379841]
[1673792365998,0.00769687,20726.0,20725.0,0.28507632]
[1673792366253,0.00769687,20726.0,20725.0,0.76758532]
[1673792366546,0.00769687,20726.0,20725.0,1.2885088]
[1673792366772,0.01469687,20726.0,20725.0,0.77608532]
[1673792367320,0.01469687,20726.0,20725.0,1.5483972]
[1673792368090,0.00769687,20726.0,20725.0,1.5483972]
[1673792368341,0.01369687,20726.0,20725.0,1.5553972]
[1673792368633,0.01369687,20726.0,20725.0,1.5483972]
[1673792368863,0.02069687,20726.0,20725.0,1.5533972]
[1673792371517,0.02069687,20726.0,20725.0,2.06582068]
[1673792371796,0.02069687,20726.0,20725.0,1.5533972]
[1673792374212,0.02069687,20726.0,20725.0,1.26832088]
[1673792374488,0.02069687,20726.0,20725.0,0.78581188]
[1673792375003,0.02069687,20726.0,20725.0,0.30330288]
[1673792375786,0.02069687,20726.0,20725.0,0.78581188]
[1673792376037,0.00769687,20726.0,20725.0,1.26332088]
[1673792376290,0.00769687,20726.0,20725.0,1.49613713]
[1673792376595,0.01469687,20726.0,20725.0,1.49613713]
[1673792377331,0.01469687,20726.0,20725.0,1.27032088]
[1673792384968,0.01461696,20726.0,20725.0,1.27032088]
[1673792390473,0.01461696,20726.0,20725.0,0.980518]
[1673792390762,0.01461696,20726.0,20725.0,1.91353843]
[1673792391016,0.01461696,20726.0,20725.0,1.81353843]
[1673792391273,0.01461696,20726.0,20725.0,2.16639739]
[1673792391537,0.01461696,20726.0,20725.0,1.84575294]
[1673792391794,0.01461696,20726.0,20725.0,2.1896316]
[1673792393141,0.01461696,20726.0,20725.0,1.67725562]
[1673792394513,0.01461696,20726.0,20725.0,1.84580044]
[1673792394778,0.00780144,20727.0,20726.0,0.1]
[1673792395031,0.00780144,20727.0,20726.0,1.72163109]
[1673792395817,0.00780144,20727.0,20726.0,1.62163109]
[1673792396089,0.00780144,20727.0,20726.0,1.91435013]
[1673792396346,1.44e-06,20727.0,20726.0,3.14665925]
[1673792396602,1.44e-06,20727.0,20726.0,2.78557352]
[1673792396863,1.44e-06,20727.0,20726.0,3.00216325]
[1673792397133,0.05816802,20729.0,20727.0,0.1]
[1673792397450,0.05816802,20729.0,20728.0,0.90193981]
[1673792397704,0.0091056,20729.0,20728.0,2.35775681]
[1673792398240,0.0091056,20729.0,20728.0,1.76603333]
[1673792398502,0.44409961,20732.0,20729.0,0.1]
[1673792398857,0.22749007,20732.0,20730.0,0.973284]
[1673792399110,0.22749007,20732.0,20731.0,0.11739108]
[1673792399360,0.4784374,20732.0,20731.0,0.60826008]
[1673792400407,0.83338416,20732.0,20731.0,0.60826008]
[1673792400919,0.53338416,20732.0,20731.0,0.497869]
[1673792401180,0.4784374,20732.0,20731.0,0.490869]
[1673792401467,1.65951662,20732.0,20731.0,0.497869]
[1673792401720,0.4779304,20732.0,20731.0,0.73407187]
[1673792401980,0.1779304,20732.0,20731.0,0.73407187]
[1673792402260,0.1779304,20732.0,20731.0,1.07805385]
[1673792402526,0.03350944,20732.0,20731.0,1.07105385]
[1673792403309,0.4779304,20732.0,20731.0,1.07105385]
[1673792403564,0.33350944,20732.0,20731.0,1.07805385]
[1673792403823,0.33350944,20732.0,20731.0,1.07105385]
[1673792404274,0.33350944,20732.0,20731.0,1.07805385]
[1673792404806,0.33350944,20732.0,20731.0,1.07105385]
[1673792405064,0.33350944,20732.0,20731.0,1.07805385]
[1673792405322,0.33350944,20732.0,20731.0,1.07105385]
[1673792405590,0.33350944,20732.0,20731.0,1.07805385]
[1673792406667,0.4779304,20732.0,20731.0,0.35948198]
[1673792406924,0.4779304,20732.0,20731.0,0.35248198]
[1673792407180,0.33350944,20732.0,20731.0,0.35948198]
[1673792407438,0.33350944,20732.0,20731.0,0.35248198]
[1673792407694,0.33350944,20732.0,20731.0,0.35948198]
[1673792407970,0.4779304,20732.0,20731.0,0.0085]
[1673792409025,0.33350944,20732.0,20731.0,0.0085]
[1673792409311,0.33350944,20732.0,20731.0,0.29503655]
[1673792409587,0.33350944,20732.0,20731.0,0.43132696]
[1673792410103,0.33350944,20732.0,20731.0,0.43832696]
[1673792410360,0.03350944,20732.0,20731.0,0.43132696]
[1673792410654,0.03350944,20732.0,20731.0,0.92069596]
[1673792414424,0.03350944,20732.0,20731.0,0.77740555]
[1673792414714,0.03350944,20732.0,20731.0,0.78140555]
[1673792415241,0.03350944,20732.0,20731.0,1.27909108]
[1673792417761,0.03350944,20732.0,20731.0,1.27509108]
[1673792418006,0.03350944,20732.0,20731.0,1.36809108]
[1673792418255,0.03350944,20732.0,20731.0,1.511149]
[1673792420628,0.38140052,20735.0,20732.0,0.39572452]
[1673792420891,0.78850947,20736.0,20733.0,0.0085]
[1673792421183,0.78850947,20736.0,20734.0,0.58292578]
[1673792421184,0.04857897,20736.0,20734.0,0.58292578]
[1673792421465,0.04857897,20736.0,20735.0,0.2347]
[1673792421741,0.14442096,20736.0,20735.0,0.2347]
[1673792421997,0.14442096,20736.0,20735.0,0.47582108]
[1673792422258,0.3610305,20737.0,20735.0,0.87686421]
[1673792422793,0.14442096,20737.0,20735.0,0.88386421]
[1673792423046,0.44442096,20737.0,20735.0,0.88386421]
[1673792423301,0.44442096,20737.0,20736.0,0.18722123]
[1673792423557,0.44442096,20737.0,20736.0,0.19572123]
[1673792423819,0.76549796,20737.0,20736.0,0.19572123]
[1673792424107,0.621077,20737.0,20736.0,0.19572123]
[1673792424360,0.44442096,20737.0,20736.0,0.19572123]
[1673792424619,0.621077,20737.0,20736.0,0.20272123]
[1673792425139,0.3,20737.0,20736.0,0.0155]
[1673792425403,0.9821075,20737.0,20736.0,0.0155]
[1673792425888,1.94689845,20737.0,20736.0,0.0155]
[1673792426146,0.76549796,20737.0,20736.0,0.0155]
[1673792426880,0.9821075,20737.0,20736.0,0.0155]
[1673792427102,1.9469042,20737.0,20736.0,0.0155]
[1673792427620,2.09129596,20737.0,20736.0,0.0155]
[1673792428134,1.94648408,20737.0,20736.0,0.0155]
[1673792428390,2.09129596,20737.0,20736.0,0.0155]
[1673792428646,2.09129596,20737.0,20736.0,0.007]